bitfinex/quotes_ETHUSD_20250519
["timestamp","ask_amount","ask_price","bid_price","bid_amount"]
[1747633782794,4.40185722,2379.9,2379.8,18.153]
[1747633785624,4.20238695,2379.6,2379.5,8.824]
[1747633787344,4.20284386,2379.4,2379.1,19.0627]
[1747633787487,4.20284386,2379.4,2379.2,8.825]
[1747633787826,4.20309347,2379.2,2379.1,18.144]
[1747633787994,4.20303311,2379.3,2379.1,26.969]
[1747633788526,4.20303311,2379.3,2379.2,8.825]
[1747633789069,0.8596,2379.7,2379.2,11.5219]
[1747633789266,4.20203378,2379.8,2379.3,5.06266036]
[1747633789628,4.20225564,2379.7,2379.4,0.13126094]
[1747633789823,4.20241752,2379.6,2379.4,0.13126094]
[1747633790029,4.20241752,2379.6,2379.3,0.8599]
[1747633790325,4.20240786,2379.6,2379.3,4.33279737]
[1747633790529,4.20212583,2379.8,2379.3,8.53568597]
[1747633790762,0.2,2379.9,2379.5,4.2024824]
[1747633791056,4.40186237,2379.9,2379.4,12.20264146]
[1747633791419,4.40186237,2379.9,2379.5,0.1312474]
[1747633791621,4.20208074,2379.8,2379.5,2.21820157]
[1747633791868,4.40195133,2379.9,2379.6,0.1312474]
[1747633792026,4.40195133,2379.9,2379.7,8.8]
[1747633792957,4.20203378,2379.8,2379.7,8.8]
[1747633793135,4.20203378,2379.8,2379.7,8.93125061]
[1747633793330,4.40194386,2379.9,2379.7,8.93125061]
[1747633793757,4.40194386,2379.9,2379.7,8.8]
[1747633794063,0.2,2379.9,2379.7,8.8]
[1747633794359,0.2,2379.9,2379.7,9.88869542]
[1747633794520,0.2,2379.9,2379.8,0.13124955]
[1747633794952,4.40185722,2379.9,2379.8,0.13124955]
[1747633795154,0.2,2379.9,2379.8,0.13124955]
[1747633795353,4.40185722,2379.9,2379.8,0.13124955]
[1747633795522,4.20203378,2379.8,2379.7,8.8]
[1747633795722,4.20228719,2379.7,2379.5,2.08695417]
[1747633795938,4.20228719,2379.7,2379.6,8.8]
[1747633796226,4.2020752,2379.8,2379.6,9.16274501]
[1747633796969,4.20221036,2379.7,2379.6,0.23148937]
[1747633797143,4.20221036,2379.7,2379.6,9.03148937]
[1747633797326,4.20221036,2379.7,2379.6,9.16274883]
[1747633797727,4.20221036,2379.7,2379.6,8.93125946]
[1747633798759,4.2020752,2379.8,2379.6,8.93125946]
[1747633798760,4.20212514,2379.8,2379.6,8.93125946]
[1747633799155,0.2,2379.9,2379.6,9.82438541]
[1747633799322,0.2,2379.9,2379.8,0.8804]
[1747633799523,0.2,2379.9,2379.8,1.01165946]
[1747633799719,0.2,2379.9,2379.8,14.7872405]
[1747633799930,0.2,2379.9,2379.8,22.7872405]
[1747633800154,0.2,2379.9,2379.8,26.45548906]
[1747633800371,0.2,2379.9,2379.8,22.25345528]
[1747633800733,4.40185722,2379.9,2379.8,0.36280672]
[1747633801057,5.32665722,2379.9,2379.8,0.62301141]
[1747633801259,5.32665722,2379.9,2379.8,0.49175195]
[1747633801465,5.32665722,2379.9,2379.8,0.26020469]
[1747633801666,0.2,2379.9,2379.8,0.26020469]
[1747633801847,0.2,2379.9,2379.8,1.14060469]
[1747633802049,0.2,2379.9,2379.8,10.70677602]
[1747633802373,0.2,2379.9,2379.8,10.83801721]
[1747633803240,0.2,2379.9,2379.8,11.07000623]
[1747633804275,4.40185722,2379.9,2379.8,0.36323021]
[1747633804446,5.33065722,2379.9,2379.8,0.36323021]
[1747633804773,4.20238695,2379.6,2379.5,0.32315553]
[1747633805473,5.09958695,2379.6,2379.5,0.32315553]
[1747633805676,6.44997312,2379.6,2379.5,0.32315553]
[1747633805888,5.09958695,2379.6,2379.5,0.32315553]
[1747633806240,4.20238695,2379.6,2379.5,0.32315553]
[1747633806688,4.20267747,2379.5,2379.2,8.8]
[1747633806870,4.20279757,2379.4,2379.3,0.13127716]
[1747633807258,5.11759757,2379.4,2379.3,0.13127716]
[1747633807573,6.04962507,2379.4,2379.3,0.13127716]
[1747633808153,4.20309683,2379.2,2378.9,8.8]
[1747633808386,4.20331414,2379.1,2378.9,8.8]
[1747633808698,4.2030275,2379.3,2378.9,8.8]
[1747633808980,4.20247026,2379.6,2379.1,0.9084]
[1747633809189,4.20258616,2379.5,2379.1,2.32287512]
[1747633809357,4.20258616,2379.5,2379.2,0.13127541]
[1747633809760,4.20248122,2379.6,2379.3,0.36403025]
[1747633809957,4.20259503,2379.5,2379.3,0.36403025]
[1747633810337,4.20259503,2379.5,2379.4,0.13127541]
[1747633810565,5.13392384,2379.5,2379.4,0.13127541]
[1747633811256,4.20309347,2379.2,2379.1,8.801]
[1747633811578,4.20296647,2379.3,2379.1,9.03391372]
[1747633811880,4.20309347,2379.2,2379.1,9.03391372]
[1747633812470,4.20309347,2379.2,2379.1,9.42718343]
[1747633813561,4.20301862,2379.3,2379.1,9.42718343]
[1747633813759,4.20309347,2379.2,2379.1,9.42718343]
[1747633814071,5.09179347,2379.2,2379.1,0.62618343]
[1747633814376,6.02126769,2379.2,2379.1,0.62618343]
[1747633814781,6.02126769,2379.2,2379.1,0.36420011]
[1747633815457,6.02126769,2379.2,2379.1,0.13128639]
[1747633815662,4.20278854,2379.4,2379.1,0.13128639]
[1747633815663,5.09148854,2379.4,2379.1,0.13128639]
[1747633816181,4.20308375,2379.3,2378.8,8.801]
[1747633816377,4.20308375,2379.3,2378.9,0.2623649]
[1747633816583,4.20313033,2379.2,2378.9,0.2623649]
[1747633816747,4.20313033,2379.2,2379.0,0.36460405]
[1747633817178,4.20313033,2379.2,2379.1,0.13129304]
[1747633817584,5.13262174,2379.2,2379.1,0.13129304]
[1747633817983,4.20397696,2378.7,2378.6,8.802]
[1747633818183,1.79119141,2379.2,2378.6,8.802]
[1747633818370,1.79119141,2379.2,2378.6,13.00615211]
[1747633818371,4.20327014,2379.1,2378.6,13.00615211]
[1747633818577,4.20327014,2379.1,2378.7,0.13130911]
[1747633818981,4.20353135,2379.0,2378.7,0.13130911]
[1747633819167,4.20362352,2378.9,2378.8,0.13130911]
[1747633819493,4.20362352,2378.9,2378.6,8.802]
[1747633819785,4.20327014,2379.1,2378.4,18.144]
[1747633819976,4.20411527,2378.7,2378.5,8.93331157]
[1747633820151,4.20411527,2378.7,2378.5,9.16616853]
[1747633820352,4.20389763,2378.8,2378.6,0.13131157]
[1747633820857,5.13427696,2378.7,2378.6,0.13131157]
[1747633821052,4.20460019,2378.4,2378.2,9.09815553]
[1747633822204,5.09248401,2378.3,2378.2,0.32315553]
[1747633823193,4.20553964,2377.9,2377.7,8.775]
[1747633823688,4.20556817,2377.8,2377.7,8.775]
[1747633824989,0.9265,2377.9,2377.7,8.775]
[1747633825199,4.20551281,2377.9,2377.7,8.775]
[1747633825706,4.20556817,2377.8,2377.7,8.775]
[1747633827106,5.04666587,2377.8,2377.7,8.775]
[1747633827281,4.20609884,2377.5,2377.1,0.9279]
[1747633827482,0.8885,2377.7,2377.1,9.7059]
[1747633827813,4.20637014,2377.4,2377.1,9.7059]
[1747633828175,4.20656023,2377.3,2377.1,8.778]
[1747633828401,4.20656023,2377.3,2377.0,18.149]
[1747633828716,4.20665727,2377.2,2377.0,18.149]
[1747633829082,4.20680661,2377.1,2377.0,18.149]
[1747633829675,4.20672172,2377.2,2377.0,18.149]
[1747633830098,4.20680661,2377.1,2377.0,18.149]
[1747633830298,0.931,2377.3,2377.0,18.149]
[1747633830605,4.20665202,2377.2,2377.0,18.149]
[1747633831110,5.13753761,2377.3,2377.0,18.149]
[1747633831308,0.8758,2377.7,2377.1,0.8648]
[1747633831604,4.20595712,2377.6,2377.1,5.07151221]
[1747633831970,4.2060678,2377.6,2377.0,19.94235667]
[1747633832179,4.20619006,2377.5,2377.0,24.14933614]
[1747633834327,4.20630323,2377.4,2377.0,18.149]
[1747633835106,4.20619456,2377.5,2377.0,4.20697767]
[1747633835410,4.20630376,2377.4,2376.9,13.9073867]
[1747633835776,4.20680661,2377.1,2377.0,8.781]
[1747633836189,4.20672653,2377.2,2377.0,8.781]
[1747633836609,4.20672099,2377.2,2377.0,8.781]
[1747633836973,4.20648705,2377.3,2377.0,8.781]
[1747633837712,4.20663546,2377.2,2377.0,8.781]
[1747633838220,4.20653514,2377.3,2377.0,8.781]
[1747633838428,4.20665051,2377.2,2377.0,8.781]
[1747633841362,4.2071168,2377.0,2376.8,8.782]
[1747633841637,4.20690201,2377.1,2376.8,9.77950773]
[1747633842208,4.20703379,2377.0,2376.8,9.77950773]
[1747633842419,4.20690354,2377.1,2376.8,9.77950773]
[1747633844019,5.05676991,2377.2,2376.8,0.99750773]
[1747633844020,4.20716058,2376.9,2376.8,0.99750773]
[1747633848647,4.20716058,2376.9,2376.8,0.99750773]
[1747633850133,4.20716058,2376.9,2376.8,1.12892836]
[1747633852642,4.20716058,2376.9,2376.8,1.36387185]
[1747633853529,4.20707296,2377.0,2376.8,1.36387185]
[1747633853698,4.20716058,2376.9,2376.8,1.62803229]
[1747633855434,12.9573197,2377.4,2376.8,1.62803229]
[1747633855591,4.20657758,2377.3,2376.9,0.8993]
[1747633855796,4.20657758,2377.3,2376.9,5.10644366]
[1747633855998,4.20657758,2377.3,2377.0,0.13142063]
[1747633856233,4.20657758,2377.3,2377.0,0.36636412]
[1747633856398,4.20662964,2377.2,2377.1,0.13142063]
[1747633856902,4.20646425,2377.3,2377.1,0.36636412]
[1747633857297,4.20646425,2377.3,2377.1,0.63052456]
[1747633857548,4.20635583,2377.4,2377.2,0.36636412]
[1747633857753,4.20579153,2377.7,2377.3,0.8781]
[1747633857920,4.20612377,2377.5,2377.3,1.00952063]
[1747633858439,4.20612377,2377.5,2377.4,0.13142063]
[1747633858748,4.2060181,2377.6,2377.4,0.36636412]
[1747633858932,4.20609884,2377.5,2377.4,0.63052456]
[1747633859317,4.20602025,2377.6,2377.4,0.63052456]
[1747633859519,4.20609884,2377.5,2377.4,0.63052456]
[1747633860211,4.20580293,2377.7,2377.4,0.63052456]
[1747633860412,4.20592193,2377.6,2377.5,0.23494349]
[1747633860646,4.20592193,2377.6,2377.5,0.36636412]
[1747633861753,5.04709442,2377.6,2377.5,0.36636412]
[1747633862068,5.88489442,2377.6,2377.5,0.36636412]
[1747633862361,5.88489442,2377.6,2377.5,0.13142063]
[1747633862520,4.20662964,2377.2,2377.1,9.07715553]
[1747633862926,4.20662964,2377.2,2377.1,0.68933383]
[1747633863929,4.20662964,2377.2,2377.1,0.63028448]
[1747633864124,5.04794102,2377.2,2377.1,0.63028448]
[1747633864331,5.97104102,2377.2,2377.1,0.63028448]
[1747633864638,5.97104102,2377.2,2377.1,0.39550674]
[1747633865175,5.97104102,2377.2,2377.1,0.13140056]
[1747633866433,4.20698359,2377.0,2376.9,8.754]
[1747633867134,4.20698359,2377.0,2376.9,8.88542207]
[1747633867329,23.01715549,2377.5,2376.9,10.76651505]
[1747633867330,10.9976,2377.5,2376.9,10.76651505]
[1747633867562,4.20641085,2377.4,2377.0,0.13142207]
[1747633867728,0.9276,2377.8,2377.0,0.13142207]
[1747633868066,4.20628546,2377.4,2377.1,0.2643492]
[1747633868270,4.2065484,2377.3,2377.2,0.23533257]
[1747633868573,4.20634237,2377.4,2377.2,0.36675464]
[1747633868967,4.20645269,2377.3,2377.2,0.13142207]
[1747633869170,4.20645269,2377.3,2377.1,0.2643492]
[1747633869559,4.20645269,2377.3,2377.2,0.13139802]
[1747633870162,4.20636654,2377.4,2377.2,0.13139802]
[1747633870378,4.20636654,2377.4,2377.3,0.13139802]
[1747633872092,5.04762019,2377.4,2377.3,0.13139802]
[1747633872594,5.91002019,2377.4,2377.3,0.13139802]
[1747633873153,5.91002019,2377.4,2376.8,0.99750773]
[1747633873154,4.20716058,2376.9,2376.8,0.99750773]
[1747633873901,4.20716058,2376.9,2376.8,1.12893228]
[1747633874400,4.20716058,2376.9,2376.8,1.62874966]
[1747633875990,4.20716058,2376.9,2376.8,1.36422845]
[1747633878001,5.918175,2376.9,2376.8,1.36422845]
[1747633878806,5.048575,2376.9,2376.8,1.36422845]
[1747633879108,5.048575,2376.9,2376.8,1.12893228]
[1747633879491,4.20716058,2376.9,2376.8,1.12893228]
[1747633883313,4.20656922,2377.3,2376.8,2.05533228]
[1747633883515,12.92828813,2377.4,2376.9,4.20698401]
[1747633883516,4.20642419,2377.4,2376.9,4.20698401]
[1747633883817,4.20593505,2377.6,2377.1,4.20672291]
[1747633883992,4.20565057,2377.8,2377.3,0.8483]
[1747633884192,4.2051758,2378.1,2377.5,4.20596135]
[1747633884502,4.20520362,2378.1,2377.6,9.70272455]
[1747633884702,6.29187114,2378.2,2377.7,4.20572148]
[1747633884882,2.08692529,2378.2,2378.0,0.9113]
[1747633885083,2.08692529,2378.2,2378.1,13.16255628]
[1747633885278,2.08692529,2378.2,2378.1,10.91685538]
[1747633885704,4.2044186,2378.5,2378.1,10.91685538]
[1747633885909,4.20423787,2378.6,2378.2,0.13142455]
[1747633886082,4.20433231,2378.5,2378.2,0.13142455]
[1747633886282,4.20420891,2378.6,2378.3,0.13142455]
[1747633886482,4.20443263,2378.5,2378.4,8.722]
[1747633886678,4.20423537,2378.6,2378.4,8.722]
[1747633887316,4.20423537,2378.6,2378.1,1.82791218]
[1747633887317,4.20468401,2378.3,2378.2,8.722]
[1747633887520,4.20521446,2378.0,2377.9,8.722]
[1747633887688,4.20504997,2378.1,2377.9,8.722]
[1747633887689,4.20511683,2378.1,2377.9,8.722]
[1747633890808,4.20503763,2378.1,2377.8,8.95448074]
[1747633891326,4.205238,2378.0,2377.8,0.23348074]
[1747633891496,4.20521446,2378.0,2377.9,8.721]
[1747633892201,4.20543566,2377.9,2377.8,8.72]
[1747633893123,4.20530133,2378.0,2377.8,8.72]
[1747633893327,4.2041537,2378.6,2377.8,8.72]
[1747633893328,4.20468566,2378.3,2377.9,0.9038]
[1747633893500,4.20441762,2378.5,2377.9,0.9038]
[1747633893701,4.20420954,2378.6,2378.0,4.20521446]
[1747633893903,4.20416162,2378.6,2378.1,5.93640515]
[1747633894232,4.20416162,2378.6,2378.1,6.067735]
[1747633894438,4.20416162,2378.6,2378.2,0.13132985]
[1747633894730,4.20416162,2378.6,2378.3,8.72]
[1747633895136,4.20416162,2378.6,2378.4,0.9143]
[1747633895339,4.20416162,2378.6,2378.4,1.89086299]
[1747633896195,4.20407089,2378.7,2378.4,1.89086299]
[1747633896400,4.20381284,2378.8,2378.4,1.89086299]
[1747633896710,4.20362352,2378.9,2378.4,1.89086299]
[1747633896910,4.20362352,2378.9,2378.5,1.48154611]
[1747633897106,4.20382841,2378.8,2378.5,1.48154611]
[1747633897658,4.20304317,2379.3,2378.5,1.48154611]
[1747633897659,10.9492,2379.4,2378.5,1.48154611]
[1747633897816,10.9492,2379.4,2378.5,1.52358669]
[1747633898018,4.2037308,2378.9,2378.6,0.9046]
[1747633898245,4.20380023,2378.8,2378.7,0.23861461]
[1747633898402,4.20431376,2378.6,2378.4,0.9088]
[1747633898605,4.20431376,2378.6,2378.5,8.718]
[1747633899239,4.2041537,2378.6,2378.5,8.718]
[1747633899911,4.2041537,2378.6,2378.4,0.9088]
[1747633900248,4.20467717,2378.4,2378.1,0.8558]
[1747633900397,4.20440707,2378.5,2378.4,8.718]
[1747633901248,4.2041992,2378.6,2378.4,8.718]
[1747633901404,4.20408392,2378.7,2378.4,8.718]
[1747633901741,4.20433046,2378.5,2378.4,8.718]
[1747633903042,4.20433046,2378.5,2378.2,1.90158]
[1747633903205,4.20421638,2378.6,2378.3,0.275738]
[1747633903714,4.20450723,2378.4,2378.3,0.275738]
[1747633904042,4.20450723,2378.4,2378.2,10.61958]
[1747633904238,4.20468401,2378.3,2378.0,18.16]
[1747633904440,4.20574504,2377.7,2377.6,0.9077]
[1747633904737,4.20592193,2377.6,2377.5,0.32315553]
[1747633907130,4.20609884,2377.5,2377.4,8.718]
[1747633907554,4.20667929,2377.2,2377.0,9.6074]
[1747633907761,4.20667929,2377.2,2377.0,10.66789077]
[1747633907971,4.20638215,2377.4,2377.0,10.66789077]
[1747633907972,4.20651432,2377.3,2377.0,10.66789077]
[1747633908173,4.20622426,2377.5,2377.0,14.87486074]
[1747633908539,8.693,2377.7,2377.0,10.66789077]
[1747633908540,4.20628543,2377.4,2377.0,10.66789077]
[1747633908843,4.20628543,2377.4,2377.1,0.13139018]
[1747633909079,4.20628543,2377.4,2377.1,1.63202628]
[1747633909581,4.20628543,2377.4,2377.1,1.5006361]
[1747633910879,4.20628543,2377.4,2377.2,0.13139029]
[1747633911375,4.20628543,2377.4,2377.1,1.5006361]
[1747633912282,4.20628543,2377.4,2377.2,0.13139001]
[1747633912583,4.20628543,2377.4,2377.1,1.5006361]
[1747633913080,4.20628543,2377.4,2377.2,0.23404673]
[1747633913653,4.20628543,2377.4,2377.3,0.13139035]
[1747633914962,4.20628543,2377.4,2377.1,0.9008]
[1747633915295,4.20600941,2377.6,2377.1,6.48728141]
[1747633915589,4.20616951,2377.5,2377.1,2.28049434]
[1747633915945,4.20616951,2377.5,2377.2,0.13138988]
[1747633916349,4.20616951,2377.5,2377.1,2.28049434]
[1747633916977,4.20597104,2377.6,2377.1,6.48725679]
[1747633917295,4.20597104,2377.6,2377.2,1.93830854]
[1747633917496,4.20592193,2377.6,2377.2,1.93830854]
[1747633918176,4.20642864,2377.4,2377.2,1.93830854]
[1747633918341,4.20642864,2377.4,2377.1,0.9008]
[1747633918757,4.20619507,2377.5,2377.2,0.13138822]
[1747633919482,4.20619507,2377.5,2377.1,0.9008]
[1747633920807,4.20635258,2377.4,2377.2,0.13138627]
[1747633920969,12.88858615,2377.8,2377.2,0.13138627]
[1747633921170,8.683,2377.8,2377.2,1.1035049]
[1747633921397,8.683,2377.8,2377.2,0.97211863]
[1747633921573,4.20611772,2377.5,2377.2,0.97211863]
[1747633922302,14.27537725,2378.0,2377.2,0.97211863]
[1747633922303,10.07,2378.5,2377.5,0.868]
[1747633922470,4.20515899,2378.1,2377.6,8.73205508]
[1747633922795,4.20515899,2378.1,2377.7,0.13138206]
[1747633923160,14.27400236,2378.7,2377.8,0.8795]
[1747633923161,0.8883,2378.6,2377.8,0.8795]
[1747633923495,4.20454371,2378.4,2377.9,4.20538594]
[1747633923685,4.20454371,2378.4,2378.0,0.50848859]
[1747633923857,4.20441203,2378.5,2378.1,8.69]
[1747633924056,0.8428,2378.9,2378.2,0.894]
[1747633924287,4.20390685,2378.8,2378.3,4.20467335]
[1747633924485,9.5208,2378.9,2378.2,0.894]
[1747633924789,9.5208,2378.9,2377.7,0.8709]
[1747633924790,4.20540248,2377.9,2377.7,0.8709]
[1747633924991,4.20511192,2378.1,2377.7,0.8709]
[1747633925299,4.204627,2378.4,2377.8,0.13134837]
[1747633925461,4.20481882,2378.3,2377.8,4.33684616]
[1747633925995,4.20481882,2378.3,2377.9,0.36429328]
[1747633926158,8.677,2378.6,2377.9,0.36429328]
[1747633926363,4.20503763,2378.1,2378.0,8.689]
[1747633926899,4.20493313,2378.2,2378.0,8.689]
[1747633927099,4.20504288,2378.1,2377.9,8.689]
[1747633927399,4.20521446,2378.0,2377.9,8.689]
[1747633927567,4.20490111,2378.2,2377.9,8.689]
[1747633928493,4.20513649,2378.1,2377.9,8.689]
[1747633929071,0.8428,2378.7,2377.9,8.689]
[1747633929270,4.20463241,2378.4,2378.0,0.13134553]
[1747633929468,8.672,2378.6,2378.0,0.13134553]
[1747633929667,4.20503763,2378.1,2378.0,0.13134553]
[1747633929976,4.20503763,2378.1,2377.9,8.689]
[1747633930278,4.20521446,2378.0,2377.9,8.689]
[1747633930795,5.0467953,2378.7,2377.9,8.689]
[1747633931002,4.2049507,2378.2,2378.0,0.25]
[1747633931968,8.67,2378.6,2378.1,0.8956]
[1747633932185,4.20458685,2378.4,2378.1,0.8956]
[1747633932387,4.20473757,2378.3,2378.1,0.8956]
[1747633932602,4.20458685,2378.4,2378.2,0.13133788]
[1747633933297,4.20458685,2378.4,2378.1,0.8956]
[1747633933504,4.20486081,2378.2,2378.1,0.8956]
[1747633933704,4.20486081,2378.2,2378.0,0.25]
[1747633933705,4.20503763,2378.1,2378.0,0.25]
[1747633933902,5.65073763,2378.1,2378.0,0.25]
[1747633934203,22.33873763,2378.1,2378.0,0.25]
[1747633934384,25.36707099,2378.1,2378.0,0.25]
[1747633937201,33.48307099,2378.1,2378.0,0.25]
[1747633937497,25.48307099,2378.1,2378.0,0.25]
[1747633937901,16.79407099,2378.1,2378.0,0.25]
[1747633939703,4.20503763,2378.1,2378.0,0.25]
[1747633939905,0.9048,2378.5,2378.0,0.25]
[1747633940204,4.20448755,2378.5,2378.0,5.32339437]
[1747633940403,4.20465686,2378.4,2378.0,1.1182]
[1747633940767,4.20503763,2378.1,2378.0,1.1182]
[1747633940971,4.20503763,2378.1,2378.0,0.25]
[1747633942706,12.89302081,2378.7,2378.0,0.25]
[1747633942707,0.8572,2379.2,2378.1,0.8554]
[1747633942906,4.20392039,2378.8,2378.2,13.02506866]
[1747633943107,4.20397822,2378.7,2378.3,1.80854957]
[1747633943593,4.20388505,2378.8,2378.4,0.13132623]
[1747633943795,4.20375055,2378.9,2378.5,0.9017]
[1747633944189,4.20352181,2379.0,2378.5,0.9017]
[1747633944401,4.20372008,2378.9,2378.5,0.9017]
[1747633944610,4.20372008,2378.9,2378.6,0.51060682]
[1747633944901,4.20372008,2378.9,2378.7,8.661]
[1747633945297,4.20380023,2378.8,2378.7,8.661]
[1747633946309,4.20346636,2379.0,2378.7,8.661]
[1747633946310,4.20348242,2379.0,2378.7,8.661]
[1747633946617,4.20348242,2379.0,2378.8,0.91716068]
[1747633947179,4.20362352,2378.9,2378.8,0.91716068]
[1747633947375,4.20380023,2378.8,2378.7,8.661]
[1747633949084,4.20464801,2378.4,2378.2,0.8731]
[1747633949310,0.8801,2378.9,2378.2,9.5321]
[1747633949311,4.20468401,2378.3,2378.2,9.5321]
[1747633949699,4.20440063,2378.5,2378.2,9.5321]
[1747633949883,4.20417723,2378.6,2378.2,9.5321]
[1747633950208,4.20440455,2378.5,2378.2,9.5321]
[1747633951015,3.73530853,2379.0,2378.2,10.63533624]
[1747633951220,8.653,2379.0,2378.3,0.23337904]
[1747633951379,4.20406204,2378.7,2378.3,0.23337904]
[1747633951583,4.20406204,2378.7,2378.4,0.13132128]
[1747633952113,4.20444891,2378.5,2378.3,0.23337904]
[1747633952315,4.20452908,2378.4,2378.2,9.5321]
[1747633952518,4.20468401,2378.3,2378.2,9.5321]
[1747633952890,4.20468401,2378.3,2378.2,9.66343341]
[1747633953488,4.20468401,2378.3,2378.2,0.13133341]
[1747633953707,4.20503763,2378.1,2378.0,0.25]
[1747633955292,5.04603068,2378.1,2378.0,0.25]
[1747633955540,5.91943068,2378.1,2378.0,0.25]
[1747633957820,14.56743068,2378.1,2378.0,0.25]
[1747633959333,5.91943068,2378.1,2378.0,0.25]
[1747633959533,14.56643068,2378.1,2378.0,0.25]
[1747633960822,14.56543068,2378.1,2378.0,0.25]
[1747633961021,5.91943068,2378.1,2378.0,0.25]
[1747633961210,14.56543068,2378.1,2378.0,0.25]
[1747633964869,5.91943068,2378.1,2378.0,0.25]
[1747633965160,19.5679,2378.4,2378.0,0.25]
[1747633965364,4.20503763,2378.1,2378.0,0.25]
[1747633965567,12.84770398,2378.3,2378.0,0.25]
[1747633965772,4.20470398,2378.3,2378.0,0.25]
[1747633965942,4.20459751,2378.4,2378.0,0.25]
[1747633966159,8.643,2378.6,2378.0,0.25]
[1747633966541,4.20497217,2378.2,2378.0,0.25]
[1747633966832,4.20497217,2378.2,2378.0,1.22701]
[1747633967228,4.20476599,2378.3,2378.0,1.22701]
[1747633967454,4.20459149,2378.4,2378.0,1.22701]
[1747633967661,4.20459149,2378.4,2378.1,0.13133957]
[1747633967842,4.20439106,2378.5,2378.1,0.13133957]
[1747633967843,4.20431655,2378.6,2378.2,0.8409]
[1747633968042,8.641,2378.9,2378.2,5.04567411]
[1747633968275,4.20397876,2378.7,2378.2,5.04565438]
[1747633968566,4.20397876,2378.7,2378.2,0.8409]
[1747633968567,4.20465394,2378.4,2378.2,0.8409]
[1747633968785,4.20468401,2378.3,2378.2,0.8409]
[1747633969092,4.20457204,2378.4,2378.2,0.97223867]
[1747633969431,4.20468401,2378.3,2378.2,0.97223867]
[1747633969671,4.20468401,2378.3,2378.2,0.8409]
[1747633970486,4.20503763,2378.1,2378.0,0.25]
[1747633970838,4.20480381,2378.3,2378.0,2.09231]
[1747633971254,4.20480381,2378.3,2378.1,0.1313418]
[1747633971831,0.8812,2378.9,2378.1,0.1313418]
[1747633972030,0.8812,2378.9,2378.0,2.09231]
[1747633972031,4.20433115,2378.5,2378.2,0.1313418]
[1747633972236,4.20452716,2378.4,2378.2,0.1313418]
[1747633972434,4.20452716,2378.4,2378.0,2.09231]
[1747633972658,4.20491768,2378.2,2378.0,2.09231]
[1747633972885,4.20503763,2378.1,2378.0,0.25]
[1747633973103,4.20503763,2378.1,2378.0,0.3813476]
[1747633973459,5.05573763,2378.1,2378.0,0.3813476]
[1747633973660,5.05573763,2378.1,2378.0,0.25]
[1747633975702,13.60573763,2378.1,2378.0,0.25]
[1747633976064,22.24273763,2378.1,2378.0,0.25]
[1747633979900,32.31273763,2378.1,2378.0,0.25]
[1747633981523,40.39473763,2378.1,2378.0,0.25]
[1747633981923,40.94473763,2378.1,2378.0,0.25]
[1747633984000,23.12573763,2378.1,2378.0,0.25]
[1747633984207,14.27503763,2378.1,2378.0,0.25]
[1747633985741,4.20503763,2378.1,2378.0,0.25]
[1747633989251,5.41956045,2378.1,2378.0,0.25]
[1747633990237,4.20503763,2378.1,2378.0,0.25]
[1747633993119,4.20503763,2378.1,2378.0,1.165]
[1747633995071,4.20436523,2378.5,2378.1,0.9186]
[1747633995979,8.621,2379.0,2378.2,0.8616]
[1747633996142,4.20448501,2378.5,2378.3,8.639]
[1747633996343,4.20448501,2378.5,2378.4,0.95006]
[1747633996542,4.20422576,2378.6,2378.4,0.95006]
[1747633997143,4.20422576,2378.6,2378.5,0.8616]
[1747633997781,4.20389647,2378.8,2378.5,0.8616]
[1747633997958,4.20400816,2378.7,2378.5,2.33133699]
[1747633998145,4.2041537,2378.6,2378.5,2.33133699]
[1747633998498,4.2041537,2378.6,2378.5,0.8616]
[1747633999484,4.20407128,2378.7,2378.5,0.8616]
[1747633999662,12.57610853,2379.4,2378.5,0.8616]
[1747633999997,4.20385712,2378.8,2378.5,0.8616]
[1747634000199,4.20385712,2378.8,2378.6,0.94996]
[1747634000570,4.20318963,2379.2,2378.7,5.04618735]
[1747634000769,4.20307445,2379.3,2378.8,0.8566]
[1747634001095,4.2031255,2379.2,2379.0,0.8566]
[1747634001969,4.20299463,2379.3,2379.0,0.8566]
[1747634002177,4.20309347,2379.2,2379.1,0.94936]
[1747634002559,4.20298578,2379.3,2379.1,0.94936]
[1747634003079,4.20279256,2379.4,2379.1,0.94936]
[1747634003410,5.25592747,2379.9,2379.3,0.9066]
[1747634003411,0.2,2379.9,2379.3,0.9066]
[1747634003576,4.20252196,2379.6,2379.4,8.613]
[1747634003767,4.20252196,2379.6,2379.4,9.56496]
[1747634005703,4.20274018,2379.4,2379.3,0.9066]
[1747634005863,4.20274018,2379.4,2379.0,0.31841332]
[1747634005864,4.20309347,2379.2,2379.0,0.31841332]
[1747634006067,4.20327014,2379.1,2379.0,0.31841332]
[1747634006264,4.20362352,2378.9,2378.8,0.8834]
[1747634009021,4.20354357,2379.0,2378.8,0.8834]
[1747634009609,4.20362352,2378.9,2378.8,0.8834]
[1747634010326,4.2034301,2379.1,2378.8,0.8834]
[1747634010492,4.20362352,2378.9,2378.8,0.8834]
[1747634010693,0.928,2379.5,2378.8,0.8834]
[1747634010924,4.66040853,2379.8,2379.0,0.9206]
[1747634011226,4.2023103,2379.7,2379.2,0.9206]
[1747634011524,4.20215462,2379.8,2379.4,0.8621]
[1747634011687,4.20215462,2379.8,2379.5,0.56150135]
[1747634012017,4.20215462,2379.8,2379.6,8.611]
[1747634012583,0.2,2379.9,2379.7,0.9156]
[1747634012924,4.40185722,2379.9,2379.8,0.95266]
[1747634013129,4.20203378,2379.8,2379.7,0.9156]
[1747634014503,4.40186746,2379.9,2379.5,0.862]
[1747634014504,4.20238695,2379.6,2379.5,0.862]
[1747634014823,4.20238695,2379.6,2379.5,8.611]
[1747634016296,4.20238695,2379.6,2379.1,18.153]
[1747634016297,4.20256356,2379.5,2379.4,8.61]
[1747634017437,4.20295341,2379.3,2379.1,19.0401]
[1747634017609,4.20256356,2379.5,2379.2,8.61]
[1747634019608,4.20309347,2379.2,2379.1,26.762]
[1747634023942,4.20288358,2379.4,2379.2,0.8749]
[1747634024244,4.20252868,2379.6,2379.2,3.68061813]
[1747634024539,4.20258207,2379.5,2379.2,3.63859]
[1747634024711,4.20247058,2379.6,2379.2,3.63859]
[1747634025411,4.20238695,2379.6,2379.2,3.63859]
[1747634025617,4.20230341,2379.7,2379.3,3.040059]